Cogmind - Beta 11 @@@ ROGUE MODE // 2022.03.22 @ 18:40:00 Player: Gitida Result: Destroyed by S-43 Plague with Heavy Machine Gun Performance ------------- Evolutions (8) 4000 Regions Visited (20) 4000 Robots Destroyed (246) 1230 Value Destroyed (9952) 9952 Prototype IDs (30) 600 Alien Tech Used (1) 200 Bonus (6040) 6040 TOTAL SCORE: 26022 Bonus ------- High Alert Combat Kills 1722 Follower Combat Kills 2926 Entered DSFs 500 Aligned with FarCom 300 Met Data Miner 300 Built Enhanced Grunts 300 A7 Reached Mainframe 300 Friendly Fire -308 Cogmind --------- Core Integrity 0/1450 Matter 42/300 Energy 51/100 System Corruption 0% Temperature Cool (0) Movement Core (50) Location -2/Research Parts ------- > --- POWER (3) -------- (None) > --- PROPULSION (5) --- (None) > --- UTILITY (11) ----- Advanced Target Analyzer Advanced Target Analyzer > --- WEAPON (5) ------- (None) > --- INVENTORY (5) ---- Faulty Experimental Thermal Defense Suite System Shield Heavy Gauss Cannon Advanced Remote Datajack Peak State ------------ > --- POWER ------------ Light Antimatter Reactor Micro Antimatter Reactor Quantum Reactor > --- PROPULSION ------- Light Treads Improved Treads Medium Treads Advanced Medium Treads > --- UTILITY ---------- Advanced Heat Sink Advanced Heat Sink Advanced Heat Sink High-capacity Storage Unit Improved Signal Interpreter Advanced Target Analyzer Advanced Target Analyzer Advanced Target Analyzer Makeshift Transmission Jammer Light Regenerative Plating > --- WEAPON ----------- Quantum Rifle Railgun Railgun Railgun Tactical Quantum Warhead > --- INVENTORY -------- Large Matter Pod System Shield Bomb Drone Bay Gamma Rifle Wave Gun Quantum Rifle HERF Cannon Advanced Plasma Cannon Heavy Gauss Cannon Advanced EMP Blaster Precision Grenade Launcher Smartbomb Launcher Dirty Datajack Advanced Remote Datajack [Rating: 136] Favorites ----------- Power Micro Fission Core Engine Ion Engine Power Core Micro Fission Core Reactor Light Antimatter Reactor Propulsion Light Treads Treads Light Treads Leg Centrium Leg Utility Improved Cooling System Device Improved Cooling System Storage High-capacity Storage Unit Processor Improved Signal Interpreter Hackware Authchip [Device] Protection Light Regenerative Plating Weapon Heavy Laser Energy Gun Heavy Laser Energy Cannon Heavy Plasma Cannon Ballistic Gun Enhanced Autogun Ballistic Cannon Heavy Flak Cannon Launcher Grenade Launcher Special Weapon Advanced Remote Datajack Build | -11 -10 -10 -10 -9 -8 -8 -7 -6 -6 -6 -6 -5 -5 -5 -5 -5 -4 -4 -3 -2 ------- Run | Scr Mat Min Exi Min Mat Sto Fac Fac Low Low Dat Pro Fac Ext Cet Arc Fac DSF Res Res Slots Evolved 16 | . . . . . 4 . 2 2 . . . . 2 . . . 2 . 2 2 Power 2 | . . . . . . . 1 . . . . . 1 . . . . . . . Propulsion 3 | . . . . . 1 . . . . . . . . . . . 1 . . 1 Utility 8 | . . . . . 2 . 1 2 . . . . . . . . 1 . 1 1 Weapon 3 | . . . . . 1 . . . . . . . 1 . . . . . 1 . Parts Attached 250 | 6 7 5 6 4 30 24 7 14 3 11 . 6 29 24 4 1 1 8 54 6 Power 36 | 1 1 . . 1 5 3 3 2 . . . . 6 6 1 . . . 6 1 Engine 11 | 1 1 . . 1 1 . 2 . . . . . 3 2 . . . . . . Core 17 | . . . . . 4 3 1 2 . . . . 3 4 . . . . . . Reactor 8 | . . . . . . . . . . . . . . . 1 . . . 6 1 Propulsion 39 | 2 2 . . . 6 5 1 4 . 2 . . 4 3 . 1 1 1 6 1 Treads 38 | 2 2 . . . 6 5 1 4 . 2 . . 4 3 . 1 1 1 6 . Leg 1 | . . . . . . . . . . . . . . . . . . . . 1 Wheel . | . . . . . . . . . . . . . . . . . . . . . Hover . | . . . . . . . . . . . . . . . . . . . . . Flight . | . . . . . . . . . . . . . . . . . . . . . Utility 57 | 1 3 1 3 . 5 1 1 2 2 4 . 3 5 2 2 . . 5 15 2 Device 32 | . 2 1 1 . 4 . 1 . . 3 . 2 4 . 1 . . 2 9 2 Storage 9 | 1 1 . 1 . 1 . . . 2 . . . . . . . . 1 2 . Processor 10 | . . . 1 . . 1 . 2 . . . . 1 1 1 . . . 3 . Hackware 1 | . . . . . . . . . . . . . . . . . . 1 . . Protection 5 | . . . . . . . . . . 1 . 1 . 1 . . . 1 1 . Artifact . | . . . . . . . . . . . . . . . . . . . . . Weapon 118 | 2 1 4 3 3 14 15 2 6 1 5 . 3 14 13 1 . . 2 27 2 Energy Gun 31 | . 1 1 1 1 6 3 . 1 . 1 . 1 4 5 . . . . 6 . Energy Cannon 14 | . . . 1 . . 2 . 1 1 1 . 1 4 . . . . . 1 2 Ballistic Gun 33 | 2 . 1 . 1 4 9 1 . . . . . . 3 1 . . 2 9 . Ballistic Cannon 8 | . . . . . . . . 2 . 1 . 1 1 1 . . . . 2 . Launcher 31 | . . 2 1 1 4 1 1 2 . 2 . . 5 4 . . . . 8 . Special Weapon 1 | . . . . . . . . . . . . . . . . . . . 1 . Impact Weapon . | . . . . . . . . . . . . . . . . . . . . . Slashing Weapon . | . . . . . . . . . . . . . . . . . . . . . Piercing Weapon . | . . . . . . . . . . . . . . . . . . . . . Special Melee Weapon . | . . . . . . . . . . . . . . . . . . . . . Unidentified Prototypes 16 | . . . 3 . . 5 1 . 1 1 . 1 1 . . . . . 1 2 Corrupted Parts 3 | . . . . . . . . . . . . . . 2 . . . . 1 . System Corruption 7 | . . . . . . . . . . . . . . 5 . . . . 2 . Parts Lost 90 | . 1 . . . 12 2 1 4 . 4 . . 15 7 . . . 1 39 4 Power 19 | . . . . . 2 2 1 . . . . . 4 2 . . . . 7 1 Propulsion 21 | . . . . . 4 . . 3 . 1 . . 1 2 . . . . 9 1 Utility 23 | . 1 . . . 2 . . . . 2 . . 3 1 . . . 1 11 2 Weapon 27 | . . . . . 4 . . 1 . 1 . . 7 2 . . . . 12 . Highest Loss Streak 19 | . 1 . . . 3 1 1 1 . 2 . . 4 2 . . . 1 19 3 To Critical Strikes 2 | . . . . . . . . . . . . . 1 1 . . . . . . Average Slot Usage (%) 96 | . 95 100 97 100 97 99 99 99 99 99 88 96 94 97 99 100 95 99 93 17 Engine 4 | . 14 14 14 14 2 . 7 2 . . . . 9 3 2 . . . . . Core 6 | . . . . . 6 9 6 10 12 12 12 12 4 12 11 11 10 10 2 . Reactor 1 | . . . . . . . . . . . . . . . 2 5 5 5 9 . Treads 20 | . 26 28 28 28 26 27 23 19 18 17 18 18 15 14 16 16 20 20 17 . Device 13 | . 11 14 10 . 17 12 14 13 12 15 18 17 15 12 10 11 10 14 16 2 Storage 8 | . 14 14 14 14 9 9 7 6 16 9 6 6 5 5 5 5 5 5 4 . Processor 13 | . . . 3 14 9 14 15 26 18 18 18 18 15 16 16 16 15 10 12 11 Protection 3 | . . . . . . . . . . 4 6 3 5 9 11 11 10 14 8 . Energy Gun 8 | . 3 11 12 14 21 9 7 2 . 3 2 6 9 10 11 11 10 10 8 . Energy Cannon 1 | . . . . . . . . 1 6 5 2 6 5 . . . . . . . Ballistic Gun 7 | . 24 9 . 6 4 17 15 11 6 2 . . . 8 11 11 10 10 10 . Ballistic Cannon 1 | . . . . . . . . 2 5 3 2 6 1 1 . . . . . . Launcher 2 | . . 6 13 7 . . . . . 2 . . 2 . . . . . . . Naked Turns . | . . . . . . . . . . . . . . . . . . . . . Heaviest Build 137 | 12 20 22 34 21 62 58 75 79 83 85 84 87 111 105 108 108 108 120 137 27 Greatest Support 115 | 40 40 40 40 40 60 60 60 66 66 66 64 64 72 76 76 76 102 107 115 3 Greatest Overweight (x) 8 | 1 . . . . 1 . 1 1 1 1 1 1 1 1 1 1 1 1 1 8 Average Overweight (x) . | . . . . . . . 1 1 1 1 1 1 1 1 1 1 1 1 . . Largest Inventory Capacity 20 | 8 10 10 10 10 20 20 20 20 20 20 20 20 20 20 20 20 20 20 20 5 Average Capacity 17 | 6 9 10 10 10 15 20 20 20 20 20 20 20 20 20 20 20 20 20 19 5 Most Carried 20 | 5 10 10 10 10 20 20 20 20 20 20 20 19 20 20 20 20 19 20 20 5 Average Carried 16 | 2 7 9 10 9 13 19 19 19 18 18 18 17 16 19 19 19 19 19 18 4 Final Capacity 20 | 8 10 10 10 10 20 20 20 20 20 20 20 20 20 20 20 20 20 20 5 5 Final Carried 20 | 2 10 10 10 10 20 20 20 18 20 17 20 18 19 20 20 20 19 20 5 4 Class Distribution -------------------- 43% | Scavenger-Skirmisher 22% | Scavenger-Mutant 18% | Mutant 8% | Scavenger-Gunner 5% | Scavenger-Tank Dominant Class ---------------- Mutant | -10/Materials Mutant | -10/Mines Mutant | -10/Exiles Mutant | -9/Mines Scavenger-Skirmisher | -8/Materials Scavenger-Skirmisher | -8/Storage Scavenger-Skirmisher | -7/Factory Scavenger-Skirmisher | -6/Factory Scavenger-Mutant | -6/Lower Caves Scavenger-Gunner | -6/Lower Caves Scavenger-Mutant | -6/Data Miner Scavenger-Gunner | -5/Proximity Caves Scavenger-Mutant | -5/Factory Scavenger-Skirmisher | -5/Extension Scavenger-Mutant | -5/Cetus Scavenger-Mutant | -5/Archives Scavenger-Mutant | -4/Factory Scavenger-Tank | -4/DSF Scavenger-Tank | -3/Research Mutant | -2/Research Resources | -11 -10 -10 -10 -9 -8 -8 -7 -6 -6 -6 -6 -5 -5 -5 -5 -5 -4 -4 -3 -2 ----------- Run | Scr Mat Min Exi Min Mat Sto Fac Fac Low Low Dat Pro Fac Ext Cet Arc Fac DSF Res Res Matter Collected 6248 | 258 199 117 . 234 480 572 256 390 190 282 . 154 562 671 131 15 . 122 1615 . Remotely . | . . . . . . . . . . . . . . . . . . . . . Salvage Created 9496 | . 351 269 . 122 1758 808 274 553 75 411 . 56 1197 619 184 . . 261 2518 40 Parts 498 | . 24 18 . 12 102 46 13 34 2 19 . 1 51 35 5 . . 8 125 3 Haulers Intercepted 5 | . 1 . . . 1 1 1 . . . . . . . . . . . 1 . Recyclers Shooed 11 | . 2 . . . 2 1 . . . . . . 5 1 . . . . . . Parts Field Recycled . | . . . . . . . . . . . . . . . . . . . . . Retrieved Matter . | . . . . . . . . . . . . . . . . . . . . . Parts Self-Destructed 37 | . . . . . . . . . 3 28 . 6 . . . . . . . . Prevented 8 | . . . . . . . . . 1 7 . . . . . . . . . . Kills | -11 -10 -10 -10 -9 -8 -8 -7 -6 -6 -6 -6 -5 -5 -5 -5 -5 -4 -4 -3 -2 ------- Run | Scr Mat Min Exi Min Mat Sto Fac Fac Low Low Dat Pro Fac Ext Cet Arc Fac DSF Res Res Combat Hostiles Destroyed 200 | . 6 13 . 8 36 17 5 13 1 9 . 1 22 11 3 . . 2 52 1 Guns 108 | . 6 5 . . 23 17 5 2 . . . 1 10 5 3 . . 2 29 . Cannons 18 | . . . . . . . . 4 1 6 . . 4 1 . . . . 1 1 AOE 72 | . . 8 . 8 12 . . 7 . 3 . . 7 5 . . . . 22 . Classes Destroyed 20 | . 4 2 . . 7 1 2 1 . . . . . 1 . . . . 2 . Worker 9 | . 1 . . . 2 1 . 1 . . . . 1 1 . . . . 2 . Builder 13 | . . . . . 1 1 . . . . . . 1 . . . . . 10 . Tunneler 3 | . . . . . . . . 2 . . . . . . . . . . 1 . Hauler 5 | . 1 . . . 1 1 1 . . . . . . . . . . . 1 . Recycler 9 | . . 2 . 1 5 . . . . . . . . . . . . . 1 . Mechanic 2 | . . . . . 1 . . . . . . . 1 . . . . . . . Watcher 4 | . 1 . . . 1 . . 1 . . . . . . . . . . 1 . Swarmer 66 | . . 11 . 8 10 3 . 4 . 3 . . 4 4 . . . . 18 1 Cutter 1 | . . . . . 1 . . . . . . . . . . . . . . . Saboteur 1 | . . . . . . . . . . . . . . . . . . . 1 . Grunt 62 | . 6 2 . . 12 8 2 3 . 6 . . 7 1 2 . . . 13 . Brawler 5 | . . . . . 1 1 . 1 . . . . 2 . . . . . . . Duelist 3 | . . . . . . 1 1 . . . . . . . . . . . 1 . Protector 1 | . . . . . 1 . . . . . . . . . . . . . . . Sentry 17 | . . . . . 7 4 . 1 1 . . 1 . 1 . . . . 2 . Specialist 6 | . . . . . 4 . . . . . . . . . . . . . 2 . Hunter 14 | . . . . . . . 1 2 . . . . 2 4 1 . . 2 2 . Programmer 22 | . . . . . . . 1 2 . . . . 7 . . . . . 12 . Heavy 1 | . . . . . . . . . . . . . . . . . . . 1 . Behemoth 1 | . . . . . . . . . . . . . . 1 . . . . . . Thug 1 | . . . . . . . . . . . . . . 1 . . . . . . Best Kill Streak 15 | . 2 3 . 4 9 4 4 6 1 2 . 1 6 4 2 . . 2 15 1 Combat Bots Only 9 | . 2 3 . 4 8 3 3 4 1 2 . 1 5 4 2 . . 2 9 1 Max Kills in Single Turn 6 | . 1 3 . 2 4 2 1 6 1 2 . 1 3 3 2 . . 1 5 1 Gunslinging 1 | . . 1 . . . . . . . . . . . . 1 . . . 1 . Exploded 5 | . . 3 . 2 2 . . 4 . 2 . . 3 3 . . . . 5 . Melee . | . . . . . . . . . . . . . . . . . . . . . Uniques/NPCs Destroyed . | . . . . . . . . . . . . . . . . . . . . . Combat | -11 -10 -10 -10 -9 -8 -8 -7 -6 -6 -6 -6 -5 -5 -5 -5 -5 -4 -4 -3 -2 -------- Run | Scr Mat Min Exi Min Mat Sto Fac Fac Low Low Dat Pro Fac Ext Cet Arc Fac DSF Res Res Damage Taken 16649 | . 358 251 . 40 1476 828 317 860 179 644 . 41 2323 732 29 . . 441 5820 2310 Core 3220 | . 26 44 . 26 231 93 36 120 22 36 . . 243 72 9 . . . 810 1452 Absorbed by Shields 29 | . . . . . . . . . . . . . . . 29 . . . . . Regen/Repaired (Parts) 1425 | . 185 . . . . . . 53 . 127 51 . 576 147 10 . . 64 212 . Core Remaining (%) 72 | 100 . . . 61 . 41 94 . . . . 79 . . . 67 . 100 37 . Volleys Fired 481 | . 38 21 . 4 74 60 19 33 5 13 . 2 71 23 5 . . 7 104 2 Largest 5 | . 2 2 . 1 3 3 3 3 3 3 . 2 3 4 4 . . 4 5 1 Hottest 450 | . 85 85 . 30 180 119 119 173 189 177 . 124 207 214 450 . . 211 330 94 Shots Fired 1272 | . 76 37 . 4 185 164 57 81 13 30 . 6 154 84 17 . . 28 334 2 Gun 1100 | . 76 32 . . 174 164 57 54 5 9 . 2 104 76 17 . . 28 302 . Cannon 97 | . . . . . . . . 20 8 17 . 4 26 4 . . . . 16 2 Launcher 74 | . . 5 . 4 11 . . 7 . 4 . . 24 4 . . . . 15 . Special 1 | . . . . . . . . . . . . . . . . . . . 1 . Kinetic 595 | . 74 17 . . 36 104 38 58 5 14 . 2 11 31 8 . . 14 183 . Thermal 526 | . 2 15 . . 126 60 19 15 5 . . . 110 49 9 . . 14 102 . Explosive 39 | . . 5 . 4 11 . . 1 . . . . 3 2 . . . . 13 . Electromagnetic 111 | . . . . . 12 . . 7 3 16 . 4 30 2 . . . . 35 2 Robot Hit Streak 36 | . 7 9 . . 36 22 6 10 3 10 . 5 15 11 4 . . 5 15 3 Robot Miss Streak 6 | . 2 3 . 2 3 4 6 5 2 3 . 3 4 6 3 . . 3 6 1 Penetration Max 1 | . . . . . . . . 1 . . . . . 1 . . . . 1 . Secondary Targets 16 | . . 1 . . 1 3 1 . . . . . 2 . 1 . . 1 6 . Max Gunslinging Chain 1 | . . 1 . . 1 1 1 . . . . . 1 . 1 . . 1 1 . Shots Hit Robots 793 | . 55 26 . . 128 99 36 53 5 22 . 5 94 54 8 . . 15 192 1 Core Hits 500 | . 19 21 . 10 92 37 13 35 2 28 . 6 61 29 5 . . 6 135 1 Critical Kills 7 | . . . . . . 1 . . . . . . 1 1 1 . . . 3 . Critical Parts Destroyed 4 | . . . . . . . 1 . 1 . . . . 1 . . . 1 . . Critical Strikes 33 | . . 2 . . 5 5 1 . 1 . . . 6 4 1 . . 1 6 1 Burn 15 | . . 2 . . 5 4 . . . . . . 3 1 . . . . . . Meltdown 1 | . . . . . . . . . . . . . 1 . . . . . . . Destroy 10 | . . . . . . 1 1 . 1 . . . . 2 1 . . 1 3 . Blast 4 | . . . . . . . . . . . . . 2 1 . . . . 1 . Corrupt 3 | . . . . . . . . . . . . . . . . . . . 2 1 Melee Attacks . | . . . . . . . . . . . . . . . . . . . . . Impact . | . . . . . . . . . . . . . . . . . . . . . Slashing . | . . . . . . . . . . . . . . . . . . . . . Piercing . | . . . . . . . . . . . . . . . . . . . . . Sneak Attacks . | . . . . . . . . . . . . . . . . . . . . . Combat Hostiles . | . . . . . . . . . . . . . . . . . . . . . Follow-up Attacks . | . . . . . . . . . . . . . . . . . . . . . Damage Inflicted 24834 | . 478 658 . 311 3129 1781 713 1933 126 734 . 78 3136 1515 231 . . 341 9602 68 Guns 14221 | . 475 250 . . 1782 1751 711 540 46 96 . 19 1385 993 231 . . 341 5601 . Cannons 1900 | . . . . . . . . 518 80 330 . 59 601 58 . . . . 186 68 Explosions 8580 | . . 401 . 300 1338 . . 874 . 308 . . 1133 436 . . . . 3790 . Melee . | . . . . . . . . . . . . . . . . . . . . . Ramming 133 | . 3 7 . 11 9 30 2 1 . . . . 17 28 . . . . 25 . Kinetic 7545 | . 459 113 . . 261 1132 441 793 46 263 . 36 241 420 64 . . 184 3092 . Thermal 7829 | . 16 137 . . 1454 619 270 517 31 81 . . 1665 631 167 . . 157 2084 . Explosive 6655 | . . 401 . 300 1269 . . 324 . . . . 342 334 . . . . 3685 . Electromagnetic 2672 | . . . . . 136 . . 298 49 390 . 42 871 102 . . . . 716 68 Impact . | . . . . . . . . . . . . . . . . . . . . . Slashing . | . . . . . . . . . . . . . . . . . . . . . Piercing . | . . . . . . . . . . . . . . . . . . . . . Highest Corruption 20 | . . . . . . 1 1 7 7 10 10 10 14 20 20 20 . 1 15 . Average Corruption 10 | . . . . . . 1 1 6 7 8 10 10 6 17 20 20 . 1 10 . Corruption Purged . | . . . . . . . . . . . . . . . . . . . . . Corruption Blocked . | . . . . . . . . . . . . . . . . . . . . . Effects 364 | . . . . . . 1 1 28 29 35 6 21 52 98 27 19 . . 47 . Message Errors 94 | . . . . . . . . 7 5 9 . 9 13 20 9 9 . . 13 . Matter Fused 73 | . . . . . . 1 . 3 10 9 2 4 13 21 2 1 . . 7 . Heat Flow Errors 44 | . . . . . . . . 4 2 7 2 1 5 11 5 3 . . 4 . Energy Discharges 44 | . . . . . . . 1 4 3 2 . 1 4 14 5 1 . . 9 . Parts Rejected 3 | . . . . . . . . 1 . . . . 2 . . . . . . . Data Loss (minor) 41 | . . . . . . . . 7 3 4 1 1 4 12 3 3 . . 3 . Data Loss (major) 22 | . . . . . . . . . 2 3 1 3 4 3 2 1 . . 3 . Misfires 19 | . . . . . . . . . 2 1 . 2 4 9 1 . . . . . Alerts 10 | . . . . . . . . 1 2 . . . 2 4 . 1 . . . . Misdirections 2 | . . . . . . . . . . . . . . 2 . . . . . . Weapon Failures 12 | . . . . . . . . 1 . . . . 1 2 . . . . 8 . Overload Shots 3 | . . . . . . . . . . . . . . . 2 . . . 1 . Overflow Damage 390 | . . 10 . . 37 . . 95 . 29 . . 25 . . . . . 191 3 Projectiles 26 | . . . . . . . . . . . . . 23 . . . . . . 3 Explosions 364 | . . 10 . . 37 . . 95 . 29 . . 2 . . . . . 191 . Melee . | . . . . . . . . . . . . . . . . . . . . . Knockbacks 19 | . . 1 . . 1 . . 2 . 5 . 6 2 1 . . . . 1 . Impact 3 | . . 1 . . 1 . . . . . . . . 1 . . . . . . Kinetic 14 | . . . . . . . . 2 . 5 . 4 2 . . . . . 1 . Secondary 2 | . . . . . . . . . . . . 2 . . . . . . . . Self-Inflicted Damage 325 | . . 14 . . 26 . . 13 . 173 . . 72 15 . . . . 12 . Shots 18 | . . 1 . . 1 . . 1 . 4 . . 7 2 . . . . 2 . Rammed 27 | . 2 1 . 2 2 6 3 1 . . . . 2 3 . . . . 4 1 Targets Rammed 30 | . 2 2 . 3 2 7 3 1 . . . . 2 3 . . . . 4 1 Kicked . | . . . . . . . . . . . . . . . . . . . . . Crushed 3 | . . 1 . 1 . 1 . . . . . . . . . . . . . . Highest Temperature 407 | . 48 48 . . 338 57 87 242 168 296 174 175 404 241 345 218 . 222 407 16 Average Temperature 84 | . 14 21 . . 77 18 32 54 83 92 77 90 122 89 140 88 . 104 105 12 Received Heat Transfer 2586 | . 198 9 . . 531 261 90 186 54 174 . . 351 54 8 . . . 418 252 Effects 9 | . . . . . 1 . . . . . . . 1 . 1 . . . 6 . Shutdowns 2 | . . . . . . . . . . . . . . . . . . . 2 . Energy Bleed 1 | . . . . . . . . . . . . . . . 1 . . . . . Interference 4 | . . . . . 1 . . . . . . . . . . . . . 3 . Damage (minor) 2 | . . . . . . . . . . . . . 1 . . . . . 1 . Siege Activations . | . . . . . . . . . . . . . . . . . . . . . Robots Corrupted . | . . . . . . . . . . . . . . . . . . . . . Combat Hostiles . | . . . . . . . . . . . . . . . . . . . . . Parts Fried 7 | . . . . . . . . 1 . . . . 6 . . . . . . . Impact Corruptions . | . . . . . . . . . . . . . . . . . . . . . Robots Melted 2 | . . . . . 1 . . . . . . . 1 . . . . . . . Combat Hostiles 2 | . . . . . 1 . . . . . . . 1 . . . . . . . Parts Melted 37 | . . 3 . . 9 8 2 1 . . . . 7 1 1 . . . 5 . Heat Transferred 14957 | . 37 481 . . 4096 1665 518 550 50 50 . . 3025 1295 241 . . 259 2690 . Parts Sabotaged . | . . . . . . . . . . . . . . . . . . . . . Parts Stolen . | . . . . . . . . . . . . . . . . . . . . . Parts Stripped . | . . . . . . . . . . . . . . . . . . . . . Power Chain Reactions 3 | . . . . . 1 . . 1 . 1 . . . . . . . . . . Missiles Intercepted . | . . . . . . . . . . . . . . . . . . . . . Alert | -11 -10 -10 -10 -9 -8 -8 -7 -6 -6 -6 -6 -5 -5 -5 -5 -5 -4 -4 -3 -2 ------- Run | Scr Mat Min Exi Min Mat Sto Fac Fac Low Low Dat Pro Fac Ext Cet Arc Fac DSF Res Res Peak Influence 1611 | . 204 232 . 143 921 586 367 401 . . . . 239 360 829 560 126 287 1611 1472 Initial 838 | . . 1 . . 47 352 187 61 . . . . . 116 135 331 126 91 159 838 Average 284 | . 107 72 . 105 621 427 181 126 . . . . 119 217 485 536 126 247 512 1017 Maximum Alert Level 5 | . 1 1 . . 3 2 1 2 . . . . 1 1 3 2 . 1 5 4 Low Security (%) 47 | 100 96 98 . 100 13 . 70 76 . . . . 75 38 4 . 100 18 11 . Level 1 26 | . 3 1 . . 3 33 29 19 . . . . 24 61 46 10 . 81 27 . Level 2 17 | . . . . . 25 66 . 4 . . . . . . 24 89 . . 48 . Level 3 6 | . . . . . 57 . . . . . . . . . 25 . . . 3 67 Level 4 1 | . . . . . . . . . . . . . . . . . . . 9 32 Level 5 . | . . . . . . . . . . . . . . . . . . . . . High Security . | . . . . . . . . . . . . . . . . . . . . . Max Security . | . . . . . . . . . . . . . . . . . . . . . Sterilizations 1 | . . . . . . . . . . . . . . . . . . 1 . . Squads Dispatched 52 | . 2 . . . 7 2 8 3 . 1 . . 8 2 2 . . 2 11 4 Investigation 8 | . . . . . . . 1 . . 1 . . 1 1 2 . . . . 2 Extermination 12 | . . . . . . . 2 2 . . . . 3 . . . . . 4 1 Reinforcement 23 | . 2 . . . 3 2 2 1 . . . . 4 1 . . . 2 5 1 Assault 4 | . . . . . 2 . . . . . . . . . . . . . 2 . Garrison 5 | . . . . . 2 . 3 . . . . . . . . . . . . . Intercept . | . . . . . . . . . . . . . . . . . . . . . Searches Triggered . | . . . . . . . . . . . . . . . . . . . . . Data Miner Redirects 6 | . . . . . . . . . . . . . 1 . 1 . . . 2 2 Construction Impeded 4 | . . . . . . 1 . . . . . . 2 . . . . . 1 . Haulers Reinforced 1 | . . . . . . . . . . . . . . . . . . . 1 . Active Scanning Responses . | . . . . . . . . . . . . . . . . . . . . . Cargo Convoy Interrupts . | . . . . . . . . . . . . . . . . . . . . . Stealth | -11 -10 -10 -10 -9 -8 -8 -7 -6 -6 -6 -6 -5 -5 -5 -5 -5 -4 -4 -3 -2 --------- Run | Scr Mat Min Exi Min Mat Sto Fac Fac Low Low Dat Pro Fac Ext Cet Arc Fac DSF Res Res Distress Signals 16 | . 2 . . . 4 3 . 1 . . . . . 1 1 . . . 1 3 Communications Jammed 77 | . . . . . . . . . . . . . 3 55 . . . . 19 . Distress Signals 77 | . . . . . . . . . . . . . 3 55 . . . . 19 . Times Spotted 365 | . 11 12 1 8 46 34 14 16 1 12 . 1 34 32 18 2 . 7 65 51 Peak Tracking Total 22 | . 4 3 1 4 6 4 5 4 1 4 . 1 5 5 4 1 . 2 7 22 Tactical Retreats 26 | . . 1 . . 1 1 . . . 2 . . 3 3 . . . 1 8 6 Traps | -11 -10 -10 -10 -9 -8 -8 -7 -6 -6 -6 -6 -5 -5 -5 -5 -5 -4 -4 -3 -2 ------- Run | Scr Mat Min Exi Min Mat Sto Fac Fac Low Low Dat Pro Fac Ext Cet Arc Fac DSF Res Res Traps Triggered 8 | . . . . . . 1 . 1 . . . . . 5 . . . . . 1 Indirectly . | . . . . . . . . . . . . . . . . . . . . . Trap Hack Attempts . | . . . . . . . . . . . . . . . . . . . . . Triggered . | . . . . . . . . . . . . . . . . . . . . . Disarmed . | . . . . . . . . . . . . . . . . . . . . . Reprogrammed . | . . . . . . . . . . . . . . . . . . . . . Reused 2 | . . 2 . . . . . . . . . . . . . . . . . . Traps Extracted . | . . . . . . . . . . . . . . . . . . . . . Installed 3 | . . 3 . . . . . . . . . . . . . . . . . . Triggered 6 | . . 2 . . . . . . . 3 . 1 . . . . . . . . Most Traps Carried 1 | . . 1 . . . . . . . . . . . . . . . . . . Exploded 2 | . . . 2 . . . . . . . . . . . . . . . . . Machines | -11 -10 -10 -10 -9 -8 -8 -7 -6 -6 -6 -6 -5 -5 -5 -5 -5 -4 -4 -3 -2 ---------- Run | Scr Mat Min Exi Min Mat Sto Fac Fac Low Low Dat Pro Fac Ext Cet Arc Fac DSF Res Res Machines Disabled 38 | . . 1 . 2 3 3 . 7 . 4 . . 8 3 2 2 . . 3 . Max in Single Turn 7 | . . 1 . 2 1 1 . 7 . 4 . . 1 1 2 . . . 1 . Garrison Access 3 | . . . . . 1 1 . . . . . . . . . . . . 1 . Machines Sabotaged . | . . . . . . . . . . . . . . . . . . . . . Garrisons Compromised . | . . . . . . . . . . . . . . . . . . . . . Overloaded Fab Kills . | . . . . . . . . . . . . . . . . . . . . . Hacking | -11 -10 -10 -10 -9 -8 -8 -7 -6 -6 -6 -6 -5 -5 -5 -5 -5 -4 -4 -3 -2 --------- Run | Scr Mat Min Exi Min Mat Sto Fac Fac Low Low Dat Pro Fac Ext Cet Arc Fac DSF Res Res Machines Accessed 51 | . 3 . 4 1 1 11 4 4 . 2 4 . 4 5 3 1 1 . 2 1 Terminals 31 | . 1 . . . 1 9 3 2 . 1 . . 2 5 3 . 1 . 2 1 Fabricators 1 | . . . . . . . 1 . . . . . . . . . . . . . Repair Stations 6 | . 1 . . . . 1 . 2 . . . . 2 . . . . . . . Recycling Units 1 | . 1 . . . . . . . . . . . . . . . . . . . Scanalyzers . | . . . . . . . . . . . . . . . . . . . . . Garrison Access 1 | . . . . . . 1 . . . . . . . . . . . . . . Total Hacks 218 | . 13 . 49 1 3 30 7 12 . 4 31 . 14 12 10 25 3 . 2 2 Successful 159 | . 6 . 49 1 1 16 5 5 . 4 31 . 7 6 1 25 1 . . 1 Failed 59 | . 7 . . . 2 14 2 7 . . . . 7 6 9 . 2 . 2 1 Catastrophic 11 | . . . . . 1 2 1 1 . . . . 1 . 3 . . . 1 1 Database Lockouts . | . . . . . . . . . . . . . . . . . . . . . Manual 13 | . . . 1 . . 3 2 1 . . . . 2 3 1 . . . . . Terminals 80 | . 3 . . . 3 26 5 6 . 3 . . 5 12 10 . 3 . 2 2 Fabricators 2 | . . . . . . . 2 . . . . . . . . . . . . . Repair Stations 24 | . 6 . . . . 3 . 6 . . . . 9 . . . . . . . Recycling Units 4 | . 4 . . . . . . . . . . . . . . . . . . . Scanalyzers . | . . . . . . . . . . . . . . . . . . . . . Garrison Access 1 | . . . . . . 1 . . . . . . . . . . . . . . Terminal Hacks 142 | . 1 . 49 1 1 14 3 2 . 4 31 . 2 6 1 25 1 . . 1 Record 96 | . . . 49 . . 4 . . . 3 11 . . 2 1 25 . . . 1 Part Schematic 12 | . . . . . . 1 . . . . 11 . . . . . . . . . Robot Schematic 6 | . . . . . . . . . . . 6 . . . . . . . . . Prototype ID Bank 6 | . 1 . . . . 1 . 1 . . 3 . . . . . . . . . Open Door 4 | . . . . 1 . 2 . . . 1 . . . . . . . . . . Open DSF 3 | . . . . . . . 1 . . . . . 1 . . . 1 . . . Branch Access Points 2 | . . . . . 1 . 1 . . . . . . . . . . . . . Alert Level 6 | . . . . . . 1 1 1 . . . . 1 2 . . . . . . Unreport Threat 2 | . . . . . . 1 . . . . . . . 1 . . . . . . Locate Traps 3 | . . . . . . 3 . . . . . . . . . . . . . . Zone Layout 2 | . . . . . . 1 . . . . . . . 1 . . . . . . Fabricator Hacks 2 | . . . . . . . 2 . . . . . . . . . . . . . Load Schematic 1 | . . . . . . . 1 . . . . . . . . . . . . . Build 1 | . . . . . . . 1 . . . . . . . . . . . . . Repair Station Hacks 13 | . 4 . . . . 1 . 3 . . . . 5 . . . . . . . Scan Component 8 | . 2 . . . . 1 . 2 . . . . 3 . . . . . . . Repair 5 | . 2 . . . . . . 1 . . . . 2 . . . . . . . Recycling Unit Hacks 1 | . 1 . . . . . . . . . . . . . . . . . . . Retrieve Components 1 | . 1 . . . . . . . . . . . . . . . . . . . Scanalyzer . | . . . . . . . . . . . . . . . . . . . . . Garrison Access Hacks 1 | . . . . . . 1 . . . . . . . . . . . . . . Seal Access 1 | . . . . . . 1 . . . . . . . . . . . . . . Unauthorized Hacks . | . . . . . . . . . . . . . . . . . . . . . Terminals . | . . . . . . . . . . . . . . . . . . . . . Fabricators . | . . . . . . . . . . . . . . . . . . . . . Repair Stations . | . . . . . . . . . . . . . . . . . . . . . Recycling Units . | . . . . . . . . . . . . . . . . . . . . . Scanalyzers . | . . . . . . . . . . . . . . . . . . . . . Garrison Access . | . . . . . . . . . . . . . . . . . . . . . Data Cores Recovered . | . . . . . . . . . . . . . . . . . . . . . Used . | . . . . . . . . . . . . . . . . . . . . . Hacking Detections 36 | . 2 . . . 1 10 3 4 . 1 . . 4 4 3 . 1 . 2 1 Full Trace Events 7 | . . . . . . . 1 . . 1 . . 1 1 2 . . . . 1 Feedback Events 1 | . . . . . . . . . . 1 . . . . . . . . . . Corruption 1 | . . . . . . . . . . 1 . . . . . . . . . . Feedback Blocked . | . . . . . . . . . . . . . . . . . . . . . Robot Schematics Acquired 6 | . . . . . . . . . . . 6 . . . . . . . . . Robots Built . | . . . . . . . . . . . . . . . . . . . . . Authchips . | . . . . . . . . . . . . . . . . . . . . . Time . | . . . . . . . . . . . . . . . . . . . . . Total Robot Build Rating . | . . . . . . . . . . . . . . . . . . . . . Part Schematics Acquired 12 | . . . . . . 1 . . . . 11 . . . . . . . . . Parts Built 2 | . . . . . . . 2 . . . . . . . . . . . . . Authchips . | . . . . . . . . . . . . . . . . . . . . . Time 47 | . . . . . . . 47 . . . . . . . . . . . . . Total Part Build Rating 10 | . . . . . . . 10 . . . . . . . . . . . . . Parts Repaired 5 | . 2 . . . . . . 1 . . . . 2 . . . . . . . Time 166 | . 52 . . . . . . 38 . . . . 76 . . . . . . . Parts Recycled . | . . . . . . . . . . . . . . . . . . . . . Recycled Matter . | . . . . . . . . . . . . . . . . . . . . . Retrieved Matter . | . . . . . . . . . . . . . . . . . . . . . Retrieved Components 9 | . 9 . . . . . . . . . . . . . . . . . . . Parts Scanalyzed . | . . . . . . . . . . . . . . . . . . . . . Part Schematics Acquired . | . . . . . . . . . . . . . . . . . . . . . Parts Damaged . | . . . . . . . . . . . . . . . . . . . . . Bothacking | -11 -10 -10 -10 -9 -8 -8 -7 -6 -6 -6 -6 -5 -5 -5 -5 -5 -4 -4 -3 -2 ------------ Run | Scr Mat Min Exi Min Mat Sto Fac Fac Low Low Dat Pro Fac Ext Cet Arc Fac DSF Res Res Used RIF Installer . | . . . . . . . . . . . . . . . . . . . . . Robots Hacked 1 | . . . . . . . . . . . . . . . . . . . 1 . Non-combat . | . . . . . . . . . . . . . . . . . . . . . Combat . | . . . . . . . . . . . . . . . . . . . . . Robot Hacks Applied . | . . . . . . . . . . . . . . . . . . . . . Manual 1 | . . . . . . . . . . . . . . . . . . . 1 . Relay Couplers Released 1 | . . . . . 1 . . . . . . . . . . . . . . . Machine Destruction 1 | . . . . . 1 . . . . . . . . . . . . . . . Fabnet Peak Effective % . | . . . . . . . . . . . . . . . . . . . . . Robots Rewired 10 | . . . . . . . . . . . . . . 10 . . . . . . Allies Hacked . | . . . . . . . . . . . . . . . . . . . . . Hacks Repelled . | . . . . . . . . . . . . . . . . . . . . . Allies | -11 -10 -10 -10 -9 -8 -8 -7 -6 -6 -6 -6 -5 -5 -5 -5 -5 -4 -4 -3 -2 -------- Run | Scr Mat Min Exi Min Mat Sto Fac Fac Low Low Dat Pro Fac Ext Cet Arc Fac DSF Res Res Total Allies 42 | . . 5 . . . 10 . . . . . 1 . 20 5 . . . 1 . Largest Group 13 | . . 5 5 . . 10 6 . . . . 1 1 13 13 8 7 7 1 . Highest-Rated Group 829 | . . 86 86 . . 173 106 . . . . 96 96 493 829 623 474 474 116 . Highest-Rated Ally 159 | . . 31 31 . . 29 29 . . . . 96 96 159 159 149 96 96 116 . Total Orders 25 | . . . . . . . . . . . . 17 . . . . . 7 1 . EXPLORE 24 | . . . . . . . . . . . . 16 . . . . . 7 1 . RETURN 1 | . . . . . . . . . . . . 1 . . . . . . . . Ally Attacks 471 | . . 4 11 . . 45 53 . . . . 11 1 100 148 19 . 48 31 . Total Damage 11392 | . . 41 59 . . 614 680 . . . . . 304 2106 3789 713 . 1683 1403 . Kills 75 | . . . 2 . . 7 8 . . . . . 3 16 20 5 . 6 8 . Allies Corrupted 1 | . . . . . . . . . . . . . . 1 . . . . . . Allies Melted . | . . . . . . . . . . . . . . . . . . . . . Intel | -11 -10 -10 -10 -9 -8 -8 -7 -6 -6 -6 -6 -5 -5 -5 -5 -5 -4 -4 -3 -2 ------- Run | Scr Mat Min Exi Min Mat Sto Fac Fac Low Low Dat Pro Fac Ext Cet Arc Fac DSF Res Res Robot Analysis Total . | . . . . . . . . . . . . . . . . . . . . . Derelict Logs Recovered 11 | . . 3 . . . . . . 3 2 . 3 . . . . . . . . Drone Launches 29 | . . . . . . . . . . . . 16 . . . . . 7 6 . Drone Recoveries 11 | . . . . . . . . . . . . 5 . . . . . 5 1 . Exploration | -11 -10 -10 -10 -9 -8 -8 -7 -6 -6 -6 -6 -5 -5 -5 -5 -5 -4 -4 -3 -2 ------------- Run | Scr Mat Min Exi Min Mat Sto Fac Fac Low Low Dat Pro Fac Ext Cet Arc Fac DSF Res Res Turns Passed 20158 | 67 452 1546 950 788 977 1650 1029 1371 1174 1245 186 647 2260 2187 677 414 11 368 1901 258 Spaces Moved 8551 | 46 168 920 586 439 400 749 369 499 511 505 80 247 702 757 271 170 5 130 593 404 Core 446 | 18 . . . . . . . . . . . . . . . . . . 24 404 Treads 8105 | 28 168 920 586 439 400 749 369 499 511 505 80 247 702 757 271 170 5 130 569 . Legs . | . . . . . . . . . . . . . . . . . . . . . Wheels . | . . . . . . . . . . . . . . . . . . . . . Hover . | . . . . . . . . . . . . . . . . . . . . . Flight . | . . . . . . . . . . . . . . . . . . . . . Fastest Speed 50 | 50 160 160 160 160 160 160 240 225 225 225 233 233 233 232 240 240 240 240 50 50 Average Speed 196 | 119 160 160 160 160 165 160 240 235 225 231 233 233 237 240 240 240 240 240 223 51 Slowest Speed 450 | 160 160 160 160 160 240 160 240 240 225 237 233 233 238 245 240 240 240 240 240 450 Overloaded Moves . | . . . . . . . . . . . . . . . . . . . . . Propulsion Burnouts . | . . . . . . . . . . . . . . . . . . . . . Robots Hopped . | . . . . . . . . . . . . . . . . . . . . . Cave-ins Triggered . | . . . . . . . . . . . . . . . . . . . . . Exploration Rate (%) 59 | 4 40 99 91 87 30 89 11 17 79 56 72 95 16 86 88 98 . 97 16 12 Regions Visited 20 Branch Regions 11 Pre-discovered Areas 6 | . . 1 1 . . . . . 2 1 1 . . . . . . . . . Known Exits Taken 12 | . . . . . 1 . . 1 1 1 1 1 1 1 1 1 1 . 1 . Unknown Exits Taken 7 | 1 1 1 1 1 . 1 1 . . . . . . . . . . . . . Scrap Searched 6 | . . 2 . 1 . . . . 2 . . 1 . . . . . . . . Spaces Dug 11 | . . . . . . . . . 1 . . . . . . . . . 10 . Terrain Destroyed 476 | . . 25 . 17 51 . . 38 2 15 . . 26 24 . . . 1 277 . Melee . | . . . . . . . . . . . . . . . . . . . . . Projectile 41 | . . . . . . . . 1 2 . . . 5 5 . . . 1 27 . AOE 435 | . . 25 . 17 51 . . 37 . 15 . . 21 19 . . . . 250 . Terrain Rammed . | . . . . . . . . . . . . . . . . . . . . . Walls Destroyed . | . . . . . . . . . . . . . . . . . . . . . Machines Disabled . | . . . . . . . . . . . . . . . . . . . . . Actions | -11 -10 -10 -10 -9 -8 -8 -7 -6 -6 -6 -6 -5 -5 -5 -5 -5 -4 -4 -3 -2 --------- Run | Scr Mat Min Exi Min Mat Sto Fac Fac Low Low Dat Pro Fac Ext Cet Arc Fac DSF Res Res Total 10938 | 57 287 960 599 520 568 1105 482 630 527 555 82 317 1151 1067 288 178 5 173 936 451 Wait 1222 | . 63 . . 58 33 224 78 71 1 19 . 57 329 114 . 1 . 14 128 32 Move 8531 | 45 167 919 585 438 399 748 368 498 510 504 79 246 701 756 270 169 4 129 592 404 Hop . | . . . . . . . . . . . . . . . . . . . . . Pick Up 154 | 6 8 4 1 6 25 14 3 9 5 4 . 2 15 13 4 3 . 6 24 2 Fast Attach 80 | 2 4 1 6 . 4 8 3 1 1 1 . . 9 15 1 1 . 4 15 4 Attach 102 | 4 1 . . . 13 3 2 7 2 4 . 6 14 5 1 . 1 3 34 2 Detach 13 | . . . . . . . . . . . 3 3 . . . . . . 6 1 Swap 69 | . 2 4 . 4 13 13 2 6 1 6 . . 6 4 2 . . 1 5 . Drop 130 | . 2 6 7 7 5 25 4 4 2 4 . 1 4 15 5 4 . 8 24 3 Fire 481 | . 38 21 . 4 74 60 19 33 5 13 . 2 71 23 5 . . 7 104 2 Melee . | . . . . . . . . . . . . . . . . . . . . . Ram 1 | . . . . . . . . . . . . . . . . . . . . 1 Kick . | . . . . . . . . . . . . . . . . . . . . . Crush 29 | . 2 2 . 3 2 7 3 1 . . . . 2 3 . . . . 4 . Escape Stasis 2 | . . . . . . . . . . . . . . 2 . . . . . . Rewire 121 | . . . . . . 3 . . . . . . . 117 . . . 1 . . Trap 3 | . . 3 . . . . . . . . . . . . . . . . . . Miscellaneous . | . . . . . . . . . . . . . . . . . . . . . Route ------- -11/Scrapyard -10/Materials -10/Mines (discovered 3 exits: [*Mat x2] / *Exi) -10/Exiles (discovered 2 exits: *Min x2) -9/Mines -8/Materials -8/Storage (discovered 2 exits: *Fac / [*Rec]) -7/Factory (discovered 3 exits: *Fac / Low x2) -6/Factory -6/Lower Caves -6/Lower Caves (discovered 2 exits: *Fac / *Dat) -6/Data Miner -5/Proximity Caves -5/Factory (discovered 3 exits: Upp x2 / *Ext) -5/Extension (discovered 2 exits: *Fac / *Cet) -5/Cetus (discovered 2 exits: *Fac / *Arc) -5/Archives (discovered 3 exits: *Fac / *Hub x2) -4/Factory -4/DSF -3/Research -2/Research History --------- Turn | Location | Event 3 | -11/Scrapyard | Discovered new exit (range 16) 68 | -11/Scrapyard | Entered Materials 305 | -10/Materials | Build established: Mutant 413 | -10/Materials | Repaired Lgt. Treads 441 | -10/Materials | Repaired Lgt. Treads 449 | -10/Materials | Discovered new exit (range 11) 520 | -10/Materials | Entered Mines 722 | -10/Mines | Found a hidden stash of uninstalled traps 1062 | -10/Mines | Discovered new exit (range 11) 1081 | -10/Mines | Learned location of Mines (-9) 1233 | -10/Mines | Learned Materials security intel 1510 | -10/Mines | Build established: Scavenger-Mutant 1675 | -10/Mines | Assisted by bots powering up and referring to "LRC-V3" 1699 | -10/Mines | Discovered new exit (range 10) 1878 | -10/Mines | Build established: Mutant 2050 | -10/Mines | Deemed a non-threat by the Exiles lab entrance 2051 | -10/Mines | Discovered new exit (range 5) 2066 | -10/Mines | Entered Exiles 2066 | -10/Exiles | Accompanied by 5 allies 2087 | -10/Exiles | Discovered new exit (range 15) 2096 | -10/Exiles | Led the pair of lost Derelicts to a safe place 2106 | -10/Exiles | Met 8R-AWN 2132 | -10/Exiles | Met EX-HEX 2218 | -10/Exiles | Met EX-DEC 2357 | -10/Exiles | Visited The Gauntlet 2559 | -10/Exiles | Learned location of Zion (-7) 2604 | -10/Exiles | Met EX-BIN 2721 | -10/Exiles | Aligned with FarCom system 2722 | -10/Exiles | Given EX-Vault access code 2759 | -10/Exiles | Opened EX-Vault 2769 | -10/Exiles | Found Prototype Storage 2769 | -10/Exiles | Identified Superbattery 2782 | -10/Exiles | Found Prototype Energy Cannon 2782 | -10/Exiles | Identified YOLO Cannon 2789 | -10/Exiles | Found Prototype Processor 2789 | -10/Exiles | Identified Modified TNC 2835 | -10/Exiles | Exiles lab attacked by MAIN.C 3002 | -10/Exiles | Discovered new exit (range 10) 3016 | -10/Exiles | Left Exiles lab with Modified TNC 3016 | -10/Exiles | Entered Mines 3133 | -9/Mines | Found the Drone Emporium 3146 | -9/Mines | Found Prototype Device 3215 | -9/Mines | Assembled infested the area 3743 | -9/Mines | Discovered new exit (range 6) 3804 | -9/Mines | Entered Materials 3804 | -8/Materials | Evolved 4 slots: Propulsion x1, Utility x2, Weapon x1 3805 | -8/Materials | Identified exit to Storage 4179 | -8/Materials | Destroyed 8 combat bots 4204 | -8/Materials | First assault squad dispatched 4489 | -8/Materials | Lost 3 parts (2n1w) 4566 | -8/Materials | Build established: Scavenger-Skirmisher 4781 | -8/Materials | Entered Storage 5353 | -8/Storage | Used back door to open Recycling access 5353 | -8/Storage | Discovered new exit (range 5) 5782 | -8/Storage | Core integrity fell below 50% 6073 | -8/Storage | Assisted by bots powering up and referring to "LRC-V3" 6289 | -8/Storage | Discovered new exit (range 20) 6414 | -8/Storage | Found Prototype Protection 6431 | -8/Storage | Entered Factory 6431 | -7/Factory | Accompanied by 6 allies 6431 | -7/Factory | Evolved 2 slots: Power x1, Utility x1 6590 | -7/Factory | Identified exit to Lower Caves 6760 | -7/Factory | Identified exit to DSF 6771 | -7/Factory | Fabricated Coil Gun? 6945 | -7/Factory | Garrison activated, responded to threat 7400 | -7/Factory | Discovered new exit (range 19) 7460 | -7/Factory | Entered another Factory area 7460 | -6/Factory | Evolved 2 slots: Utility x2 8671 | -6/Factory | Discovered new exit (range 5) 8757 | -6/Factory | Repaired Adv. Treads 8768 | -6/Factory | Identified exit to Lower Caves 8831 | -6/Factory | Entered Lower Caves 8969 | -6/Lower Caves | Found Alien Artifact 8969 | -6/Lower Caves | Identified Core Expander 8969 | -6/Lower Caves | Installed Core Expander, added new Utility slot 9104 | -6/Lower Caves | Learned location of Extension (-5) 9141 | -6/Lower Caves | Encountered a Warlord checkpoint 9241 | -6/Lower Caves | Build established: Scavenger-Mutant 9903 | -6/Lower Caves | Attracted the attention of an 0b10 checkpoint 9975 | -6/Lower Caves | Discovered new exit (range 14) 10002 | -6/Lower Caves | Identified exit to Lower Caves 10005 | -6/Lower Caves | Entered another Lower Caves area 10116 | -6/Lower Caves | Discovered new exit (range 13) 10134 | -6/Lower Caves | Learned Factory interactive machine intel 10209 | -6/Lower Caves | Build established: Scavenger-Skirmisher 10237 | -6/Lower Caves | Identified Lgt. Regenerative Plating 10609 | -6/Lower Caves | Identified exit to Data Miner 10811 | -6/Lower Caves | Build established: Scavenger-Gunner 10920 | -6/Lower Caves | Attracted the attention of an 0b10 base 10966 | -6/Lower Caves | System corruption reached 10% 11250 | -6/Lower Caves | Entered Data Miner 11250 | -6/Data Miner | Discovered new exit (range 7) 11269 | -6/Data Miner | Identified exit to Proximity Caves 11292 | -6/Data Miner | Met Data Miner 11345 | -6/Data Miner | Learned location of Section 7 (-2) 11345 | -6/Data Miner | Acquired the access code to Warlord's prototype stash 11385 | -6/Data Miner | Received God Mode back door access code from Data Miner 11436 | -6/Data Miner | Entered Proximity Caves 11441 | -5/Proximity Caves | Identified Bomb Drone Bay 11522 | -5/Proximity Caves | Escorted by Enhanced Grunt 11536 | -5/Proximity Caves | Attracted the attention of an 0b10 checkpoint 11577 | -5/Proximity Caves | Received a Behemoth hack from an annoying Tinkerer 11631 | -5/Proximity Caves | Discovered new exit (range 106) 12043 | -5/Proximity Caves | Learned Factory emergency access door positions 12055 | -5/Proximity Caves | Learned location of 1 exit from Factory 12080 | -5/Proximity Caves | Identified exit to Factory 12083 | -5/Proximity Caves | Entered Factory 12083 | -5/Factory | Accompanied by 1 ally 12083 | -5/Factory | Evolved 2 slots: Power x1, Weapon x1 12084 | -5/Factory | Identified exit to Upper Caves 12087 | -5/Factory | Loaded intel: 54 interactive machine locations 12449 | -5/Factory | Lost 4 parts (1p1n1u1w) 12527 | -5/Factory | Lost 4 parts (1p1u2w) 12567 | -5/Factory | Repaired Arm. Treads 12606 | -5/Factory | Repaired Adv. Treads 13105 | -5/Factory | Build established: Scavenger-Mutant 13620 | -5/Factory | Incoming investigation squad redirected 14100 | -5/Factory | Build established: Scavenger-Skirmisher 14137 | -5/Factory | System corruption reached 10% 14298 | -5/Factory | Discovered new exit (range 20) 14341 | -5/Factory | Identified exit to Extension 14343 | -5/Factory | Entered Extension 14415 | -5/Extension | Rescued a captive Derelict 15225 | -5/Extension | Rescued a captive Derelict 15243 | -5/Extension | Rescued A7 15255 | -5/Extension | Rescued a captive Derelict 15300 | -5/Extension | Spotted B-75 Beast 15305 | -5/Extension | Rescued a captive Derelict 15321 | -5/Extension | Spotted B-75 Beast 15340 | -5/Extension | Destroyed B-75 Beast 15348 | -5/Extension | Allies destroyed B-75 Beast 15509 | -5/Extension | Rescued a captive Derelict 15510 | -5/Extension | Rescued a captive Derelict 15586 | -5/Extension | Rescued a captive Derelict 15624 | -5/Extension | Rescued a captive Derelict 15866 | -5/Extension | Rescued a captive Derelict 16468 | -5/Extension | Discovered new exit (range 20) 16470 | -5/Extension | Discovered new exit (range 19) 16511 | -5/Extension | Identified exit to Cetus 16516 | -5/Extension | Identified exit to Factory 16530 | -5/Extension | Entered Cetus 16530 | -5/Cetus | Accompanied by 13 allies (A7) 16535 | -5/Cetus | Acquired a Cetus Manufacturing Module code from A7 16557 | -5/Cetus | Spotted Cetus Guard 16557 | -5/Cetus | Spotted Cetus Guard 16559 | -5/Cetus | Spotted Cetus Guard 16560 | -5/Cetus | Allies destroyed Cetus Guard 16562 | -5/Cetus | Spotted Cetus Guard 16568 | -5/Cetus | Allies destroyed Cetus Guard 16573 | -5/Cetus | Allies destroyed Cetus Guard 16578 | -5/Cetus | Allies destroyed Cetus Guard 16641 | -5/Cetus | Discovered exit to Factory (range 19) 16797 | -5/Cetus | Started Cetus Manufacturing Module 16822 | -5/Cetus | Manufactured an Enhanced Grunt 16847 | -5/Cetus | Manufactured an Enhanced Grunt 16872 | -5/Cetus | Manufactured an Enhanced Grunt 16897 | -5/Cetus | Manufactured an Enhanced Grunt 16922 | -5/Cetus | Manufactured an Enhanced Grunt 16984 | -5/Cetus | Incoming investigation squad redirected 17058 | -5/Cetus | Escorted A7 to Cetus Mainframe 17157 | -5/Cetus | Discovered new exit (range 20) 17200 | -5/Cetus | Identified exit to Archives 17207 | -5/Cetus | Entered Archives 17207 | -5/Archives | Accompanied by 8 allies (A7) 17212 | -5/Archives | Received a hacking code to weaken MAIN.C 17274 | -5/Archives | Discovered exit to Factory (range 15) 17296 | -5/Archives | Unable to access archive contents 17320 | -5/Archives | Unable to access archive contents 17337 | -5/Archives | Discovered new exit (range 20) 17344 | -5/Archives | Unable to access archive contents 17361 | -5/Archives | Build established: Scavenger-Mutant 17361 | -5/Archives | Discovered new exit (range 19) 17382 | -5/Archives | Unable to access archive contents 17423 | -5/Archives | Identified exit to Hub_04(d) 17621 | -5/Archives | Entered Factory 17621 | -4/Factory | Accompanied by 7 allies 17621 | -4/Factory | Evolved 2 slots: Propulsion x1, Utility x1 17632 | -4/Factory | Identified exit to DSF 17632 | -4/Factory | Entered DSF 17632 | -4/DSF | Accompanied by 7 allies 17666 | -4/DSF | Additional patrols routed to DSF 17825 | -4/DSF | Discovered new exit (range 23) 17874 | -4/DSF | Sterilization system engaged 17894 | -4/DSF | Ambient heat levels rising (+10) 17909 | -4/DSF | Ambient heat levels rising (+10) 17924 | -4/DSF | Ambient heat levels rising (+10) 17939 | -4/DSF | Ambient heat levels rising (+10) 17954 | -4/DSF | Ambient heat levels rising (+10) 17965 | -4/DSF | Build established: Scavenger-Tank 17969 | -4/DSF | Ambient heat levels rising (+10) 17984 | -4/DSF | Ambient heat levels rising (+10) 17999 | -4/DSF | Ambient heat levels rising (+10) 18000 | -4/DSF | Entered Research 18000 | -3/Research | Evolved 2 slots: Utility x1, Weapon x1 18753 | -3/Research | Lost 3 parts (1p1u1w) 19105 | -3/Research | Lost 4 parts (2p1n1u) 19157 | -3/Research | System corruption reached 10% 19194 | -3/Research | Lost 6 parts (1p2n2u1w) 19233 | -3/Research | Spotted B-86 Titan 19240 | -3/Research | Befriended a Behemoth using the annoying Tinkerer's hack 19263 | -3/Research | Incoming assault squad redirected 19420 | -3/Research | Found Prototype Launcher 19421 | -3/Research | Identified Tactical Quantum Warhead 19500 | -3/Research | First assault squad dispatched 19526 | -3/Research | Incoming assault squad redirected 19741 | -3/Research | Destroyed 9 combat bots 19777 | -3/Research | Found Tactical Quantum Warhead 19827 | -3/Research | Lost 3 parts (1p1u1w) 19889 | -3/Research | Core integrity fell below 50% 19892 | -3/Research | Destroyed 8 combat bots 19896 | -3/Research | Discovered new exit (range 9) 19900 | -3/Research | Identified exit to Research 19901 | -3/Research | Entered another Research area 19901 | -2/Research | Evolved 2 slots: Propulsion x1, Utility x1 19910 | -2/Research | Found Prototype Device 19910 | -2/Research | Identified Exp. Thermal Defense Suite 19913 | -2/Research | Found Faulty Exp. Thermal Defense Suite 19921 | -2/Research | Lost 19 parts (2p4n5u8w) 19984 | -2/Research | Incoming investigation squad redirected 20064 | -2/Research | Incoming investigation squad redirected 20090 | -2/Research | Spotted B-90 Cyclops 20107 | -2/Research | Spotted B-90 Cyclops 20110 | -2/Research | Core integrity fell below 50% 20146 | -2/Research | Core integrity fell below 20% 20159 | -2/Research | Destroyed by S-43 Plague with Heavy Machine Gun Last Messages --------------- 20036_ ALERT: Suspicious activity at Terminal R010. Dispatching Investigation squad. 20047_ U-05 Engineer destroyed. 20064_ ALERT: Higher priority target reported, redirecting investigation. 20092_ Slammed into B-90 Cyclops. 20092_ Destabilizing: System interference. 20092_ Imp. Signal Interpreter temporarily disabled. 20092_ Exp. Cooling System destroyed. 20095_ B-90 Cyclops activates siege mode. 20096_ G-73 Enforcer suffers critical hit (Burn). 20108_ Subatomic Condenser disabled. 20126_ Identified Com. HERF Cannon. 20135_ Acquired Quantum Reactor. 20137_ Centrium Leg destroyed. 20137_ S-43 Plague destroyed. 20142_ Quantum Reactor destroyed. 20144_ Destroyed Unknown Flight Unit. 20146_ Dropped Com. HERF Cannon. 20146_ Imp. Signal Interpreter destroyed. 20151_ ALERT: Rogue bot located, Programmers report to Research Zone 8H. Map ----- +----------------------------------------------------+ | | | | | | | | | | | | | | | | | | | | | | | | | | | | | | | | | ####################?????????????????????????????? | | =%*] # #?????????????????????????????? | | = # #????????Y????????????????????? | | """"" # #?????????????????????????????? | | """"" # #?????????????????????????????? | | """"" # #?????????????????????????????? | | #? ???????????????????????????????? | | #??? ?????????????????????????????????? | | ######+"#####"####################???????????????? | | s @ ????????? | | s ????????? | | s ????????? | | ?????????? | | #############+#############+######+#####?????????? | | #????????????????????????????????????????????????? | | #????????????????????????????????????????????????? | | #????????????????????????????????????????????????? | | #????????????????????????????????????????????????? | | +????????????????????????????????????????????????? | | #????????????????????????????????????????????????? | | #????????????????????????????????????????????????? | | ?????????????????????????????????????????????????? | | ?????????????????????????????????????????????????? | | ?????????????????????????????????????????????????? | | ?????????????????????????????????????????????????? | | ?????????????????????????????????????????????????? | | ?????????????????????????????????????????????????? | | ?????????????????????????????????????????????????? | | ?????????????????????????????????????????????????? | | ?????????????????????????????????????????????????? | | ?????????????????????????????????????????????????? | | ?????????????????????????????????????????????????? | | ?????????????????????????????????????????????????? | | ?????????????????????????????????????????????????? | +----------------------------------------------------+ Best States ------------- Heat Dissipation 111 Energy Generation 55 Energy Capacity 1750 Matter Stores 450 Matter Capacity 450 Sight Range 20 Robot Scan Range 15 Terrain Scan Density 210 Jamming Range 14 Additional Mass Support 9 Armor Coverage 975 Phase Shifting 5 Evasion (%) 50 Target Analysis 12 Core Analysis 6 Recoil Reduction 4 Item Schematics ----------------- Coil Gun | -8/Storage | Hacked Combat Drone Bay | -6/Data Miner | Free Lgt. Regenerative Plating | -6/Data Miner | Free Enh. Armored Leg | -6/Data Miner | Free Imp. Matter Compressor | -6/Data Miner | Free Hvy. Gatling Laser | -6/Data Miner | Free Imp. Gyrokinetic Inverter | -6/Data Miner | Free Adv. Power Amplifier | -6/Data Miner | Free Phase Gun | -6/Data Miner | Free Centrium Wheel | -6/Data Miner | Free Arm. Heavy Treads | -6/Data Miner | Free Quantum Rifle | -6/Data Miner | Free Robot Schematics ------------------ S-27 Virus | -6/Data Miner | Free R-10 Processor | -6/Data Miner | Free M-22 Extractor | -6/Data Miner | Free B-60 Warrior | -6/Data Miner | Free G-67 Veteran | -6/Data Miner | Free A-27 Freighter | -6/Data Miner | Free Fabricated ------------ Coil Gun | x2 | -7/Factory Alien Tech Used ----------------- Core Expander Achievements -------------- Main Advantage Project G-00 Challenges ------------ None Game ------ Seed NuclearAluminumActivator Manual? 0 Play Time 02:40:19 Cumulative 137.2 hours Start 2022.03.17 @ 23:13:40 End 2022.03.22 @ 18:40:00 Sessions 11 Manual Loads 0 Difficulty Rogue Special Mode None Game No. 147 Rogue 147 Adventurer 0 Explorer 0 Win Type - Total 3 Types 3/0/0/0/0/0/0/0/0 Lore% 59 Gallery% 59 Achievement% 51 Wizard Run 0 Options --------- ASCII 0 Keyboard 0 Movement Numpad Keybinds 0 Fullscreen 1 Font 12/Smallcaps Map View 83x54 Tactical HUD 1 Map Filters NONE Filters NONE Steam 1 RUN: 84399ca5-c195-4521-8ccd-5eb93ebc1336